[Event "*** Titled Tuesday Blitz"]
[Site "Chess.com"]
[Date "2021.04.06"]
[Round "1"]
[White "Aleksey_Sorokin"]
[Black "Tekushka"]
[Result "1-0"]
[WhiteElo "2789"]
[BlackElo "2423"]
[TimeControl "180+1"]
[EndTime "10:07:10 PDT"]
[Termination "Aleksey_Sorokin won by resignation"]

1. d4 {[%clk 0:02:53.3]} 1... Nf6 {[%clk 0:02:57.8]} 2. c4 {[%clk 0:02:52.4]}
2... c5 {[%clk 0:02:56.8]} 3. d5 {[%clk 0:02:52.5]} 3... g6 {[%clk 0:02:57]} 4.
Nc3 {[%clk 0:02:52.1]} 4... Bg7 {[%clk 0:02:57.2]} 5. e4 {[%clk 0:02:52.6]} 5...
d6 {[%clk 0:02:57.4]} 6. h3 {[%clk 0:02:52.1]} 6... O-O {[%clk 0:02:56.5]} 7.
Nf3 {[%clk 0:02:52.5]} 7... e6 {[%clk 0:02:52.9]} 8. Bd3 {[%clk 0:02:52.5]} 8...
Re8 {[%clk 0:02:38.1]} 9. O-O {[%clk 0:02:46.8]} 9... Na6 {[%clk 0:02:38]} 10.
a3 {[%clk 0:02:42.3]} 10... Nc7 {[%clk 0:02:29]} 11. Bf4 {[%clk 0:02:41.9]}
11... e5 {[%clk 0:02:24.3]} 12. Be3 {[%clk 0:02:42]} 12... h6 {[%clk 0:02:19.3]}
13. b4 {[%clk 0:02:41]} 13... b6 {[%clk 0:02:17.7]} 14. Re1 {[%clk 0:02:40.7]}
14... Nh7 {[%clk 0:02:15]} 15. Qd2 {[%clk 0:02:37.4]} 15... f5 {[%clk
0:02:13.8]} 16. Bxh6 {[%clk 0:02:27.5]} 16... f4 {[%clk 0:02:13.9]} 17. Bxg7
{[%clk 0:02:27.5]} 17... Kxg7 {[%clk 0:02:14.8]} 18. Be2 {[%clk 0:02:25.3]}
18... g5 {[%clk 0:02:12.8]} 19. Nh2 {[%clk 0:02:24.7]} 19... Nf6 {[%clk
0:02:12.8]} 20. Bg4 {[%clk 0:02:20.2]} 20... Rh8 {[%clk 0:01:55.3]} 21. f3
{[%clk 0:02:12.8]} 21... Rh4 {[%clk 0:01:48.9]} 22. bxc5 {[%clk 0:02:12.3]}
22... bxc5 {[%clk 0:01:48.2]} 23. Rab1 {[%clk 0:02:12.2]} 23... Nxg4 {[%clk
0:01:43.8]} 24. fxg4 {[%clk 0:02:05]} 24... Ba6 {[%clk 0:01:35.6]} 25. Nf3
{[%clk 0:02:03.2]} 25... Rh8 {[%clk 0:01:34.3]} 26. Nb5 {[%clk 0:02:02.4]} 26...
Nxb5 {[%clk 0:00:41.3]} 27. cxb5 {[%clk 0:01:59.8]} 27... Bc8 {[%clk 0:00:40.9]}
28. a4 {[%clk 0:01:56.6]} 28... Bd7 {[%clk 0:00:37]} 29. Rb3 {[%clk 0:01:51.5]}
29... Kf6 {[%clk 0:00:36]} 30. Reb1 {[%clk 0:01:50.7]} 30... Qc7 {[%clk
0:00:29.9]} 31. a5 {[%clk 0:01:50.3]} 31... Rhb8 {[%clk 0:00:29.6]} 32. Qe1
{[%clk 0:01:46.8]} 32... c4 {[%clk 0:00:27.5]} 33. Rb4 {[%clk 0:01:43.2]} 33...
Qxa5 {[%clk 0:00:19]} 34. h4 {[%clk 0:01:42.7]} 34... Qb6+ {[%clk 0:00:14.8]}
35. Kf1 {[%clk 0:01:38.5]} 35... Rh8 {[%clk 0:00:14.4]} 36. Qf2 {[%clk
0:01:30.5]} 36... Qxf2+ {[%clk 0:00:12.9]} 37. Kxf2 {[%clk 0:01:30.6]} 37...
gxh4 {[%clk 0:00:12.8]} 38. Rxc4 {[%clk 0:01:30.4]} 38... Bxg4 {[%clk
0:00:12.1]} 39. Rc6 {[%clk 0:01:29.6]} 39... Rhd8 {[%clk 0:00:11.4]} 40. Nxh4
{[%clk 0:01:26.5]} 40... Rab8 {[%clk 0:00:10.5]} 41. Nf3 {[%clk 0:01:22.4]}
41... Ke7 {[%clk 0:00:10.4]} 42. Rh1 {[%clk 0:01:17.7]} 42... Rh8 {[%clk
0:00:09]} 43. Rc7+ {[%clk 0:01:12.1]} 43... Bd7 {[%clk 0:00:09.9]} 44. Rxh8
{[%clk 0:01:05.5]} 44... Rxh8 {[%clk 0:00:09.8]} 45. Rxa7 {[%clk 0:01:06.4]}
45... Rb8 {[%clk 0:00:09.9]} 46. Nh4 {[%clk 0:01:06.7]} 46... Rxb5 {[%clk
0:00:09.2]} 47. Nf5+ {[%clk 0:01:06.7]} 47... Kd8 {[%clk 0:00:08.5]} 48. Nxd6
{[%clk 0:01:06.2]} 48... Rb2+ {[%clk 0:00:09.2]} 49. Kg1 {[%clk 0:01:04.8]}
49... Rb1+ {[%clk 0:00:09.2]} 50. Kh2 {[%clk 0:01:04.9]} 50... Rb2 {[%clk
0:00:09.3]} 51. Nf7+ {[%clk 0:01:05]} 51... Ke8 {[%clk 0:00:07.9]} 52. Nxe5
{[%clk 0:01:05.1]} 52... Bb5 {[%clk 0:00:07.6]} 53. d6 {[%clk 0:00:59.9]} 53...
Bf1 {[%clk 0:00:06]} 54. Ra8+ {[%clk 0:00:59]} 1-0

[Event "*** Titled Tuesday Blitz"]
[Site "Chess.com"]
[Date "2021.04.06"]
[Round "1"]
[White "Titus369"]
[Black "catzapto"]
[Result "1-0"]
[WhiteElo "2499"]
[BlackElo "2062"]
[TimeControl "180+1"]
[EndTime "10:07:10 PDT"]
[Termination "Titus369 won by checkmate"]

1. e4 {[%clk 0:02:54.2]} 1... c5 {[%clk 0:02:43.5]} 2. Nf3 {[%clk 0:02:54.1]}
2... e6 {[%clk 0:02:20.3]} 3. d4 {[%clk 0:02:54]} 3... cxd4 {[%clk 0:02:21.2]}
4. Nxd4 {[%clk 0:02:54]} 4... Nf6 {[%clk 0:02:22.1]} 5. Nc3 {[%clk 0:02:54.1]}
5... Bb4 {[%clk 0:02:22]} 6. e5 {[%clk 0:02:51.4]} 6... Nd5 {[%clk 0:02:21.6]}
7. Qg4 {[%clk 0:02:51.9]} 7... g6 {[%clk 0:02:22.2]} 8. Bd2 {[%clk 0:01:17.9]}
8... Nxc3 {[%clk 0:02:16.7]} 9. bxc3 {[%clk 0:01:18.8]} 9... Be7 {[%clk
0:02:17]} 10. h4 {[%clk 0:01:16.3]} 10... Nc6 {[%clk 0:02:16.3]} 11. Nf3 {[%clk
0:01:14.2]} 11... Qc7 {[%clk 0:02:14.6]} 12. Qf4 {[%clk 0:01:09.2]} 12... d6
{[%clk 0:02:08]} 13. exd6 {[%clk 0:01:09.1]} 13... Bxd6 {[%clk 0:02:08.3]} 14.
Qf6 {[%clk 0:01:08.7]} 14... Be5 {[%clk 0:02:07]} 15. Nxe5 {[%clk 0:01:01]}
15... Qxe5+ {[%clk 0:02:07.9]} 16. Qxe5 {[%clk 0:01:01.5]} 16... Nxe5 {[%clk
0:02:08.6]} 17. Bg5 {[%clk 0:00:58.7]} 17... O-O {[%clk 0:01:44.9]} 18. O-O-O
{[%clk 0:00:48]} 18... a6 {[%clk 0:01:18.1]} 19. h5 {[%clk 0:00:42]} 19... f6
{[%clk 0:01:10.8]} 20. Bf4 {[%clk 0:00:30.2]} 20... Ng4 {[%clk 0:00:59]} 21. Bg3
{[%clk 0:00:28.7]} 21... f5 {[%clk 0:00:43.5]} 22. hxg6 {[%clk 0:00:17.7]} 22...
hxg6 {[%clk 0:00:44.4]} 23. f3 {[%clk 0:00:18.1]} 23... f4 {[%clk 0:00:42.9]}
24. Bh4 {[%clk 0:00:16.3]} 24... Ne3 {[%clk 0:00:40.8]} 25. Rd4 {[%clk
0:00:11.3]} 25... e5 {[%clk 0:00:35.9]} 26. Re4 {[%clk 0:00:08.7]} 26... Nxf1
{[%clk 0:00:23.6]} 27. Rxf1 {[%clk 0:00:07.8]} 27... Rf5 {[%clk 0:00:14.2]} 28.
Rfe1 {[%clk 0:00:07]} 28... g5 {[%clk 0:00:14.7]} 29. Bf2 {[%clk 0:00:06.9]}
29... Bd7 {[%clk 0:00:14.3]} 30. Rxe5 {[%clk 0:00:07]} 30... Raf8 {[%clk
0:00:12.3]} 31. Re7 {[%clk 0:00:06.4]} 31... R8f7 {[%clk 0:00:11.9]} 32. Bd4
{[%clk 0:00:06.1]} 32... Kf8 {[%clk 0:00:10.9]} 33. R7e2 {[%clk 0:00:05.1]}
33... Bc6 {[%clk 0:00:10.4]} 34. Rh1 {[%clk 0:00:05.2]} 34... Rb5 {[%clk
0:00:09.5]} 35. Rh8# {[%clk 0:00:05.6]} 1-0

[Event "*** Titled Tuesday Blitz"]
[Site "Chess.com"]
[Date "2021.04.06"]
[Round "1"]
[White "kikydu96"]
[Black "Angry_Twin"]
[Result "0-1"]
[WhiteElo "2448"]
[BlackElo "2872"]
[TimeControl "180+1"]
[EndTime "10:07:11 PDT"]
[Termination "Angry_Twin won on time"]

1. e4 {[%clk 0:02:59]} 1... e5 {[%clk 0:02:55.1]} 2. Nf3 {[%clk 0:02:57.6]} 2...
Nc6 {[%clk 0:02:55]} 3. Bc4 {[%clk 0:02:57.5]} 3... Bc5 {[%clk 0:02:54.7]} 4. d3
{[%clk 0:02:54.7]} 4... Nf6 {[%clk 0:02:54.7]} 5. O-O {[%clk 0:02:53.9]} 5... d6
{[%clk 0:02:53.8]} 6. c3 {[%clk 0:02:52.4]} 6... O-O {[%clk 0:02:45.5]} 7. Bg5
{[%clk 0:02:51.2]} 7... h6 {[%clk 0:02:44.8]} 8. Bh4 {[%clk 0:02:51.2]} 8... Be6
{[%clk 0:02:35.3]} 9. Bb3 {[%clk 0:02:34.9]} 9... Bb6 {[%clk 0:02:22.9]} 10.
Nbd2 {[%clk 0:02:28.6]} 10... g5 {[%clk 0:02:22.8]} 11. Nxg5 {[%clk 0:01:51.6]}
11... hxg5 {[%clk 0:02:21.7]} 12. Bxg5 {[%clk 0:01:52.5]} 12... Kg7 {[%clk
0:02:22.4]} 13. Kh1 {[%clk 0:01:53]} 13... Qd7 {[%clk 0:02:05.6]} 14. f4 {[%clk
0:01:24.9]} 14... exf4 {[%clk 0:02:05.6]} 15. Rxf4 {[%clk 0:01:19]} 15... Nh7
{[%clk 0:00:32.9]} 16. Qh5 {[%clk 0:01:13.1]} 16... f6 {[%clk 0:00:26.8]} 17.
Bh6+ {[%clk 0:00:44.4]} 17... Kh8 {[%clk 0:00:20.7]} 18. Bxf8 {[%clk 0:00:34.2]}
18... Rxf8 {[%clk 0:00:21.6]} 19. d4 {[%clk 0:00:30.1]} 19... Bxb3 {[%clk
0:00:20.3]} 20. axb3 {[%clk 0:00:31]} 20... Qe8 {[%clk 0:00:19.2]} 21. Qh6
{[%clk 0:00:28.9]} 21... Rg8 {[%clk 0:00:17.6]} 22. Rxf6 {[%clk 0:00:25.5]}
22... Qe7 {[%clk 0:00:17.6]} 23. Raf1 {[%clk 0:00:17.6]} 23... Nd8 {[%clk
0:00:17.9]} 24. R6f3 {[%clk 0:00:14.6]} 24... Qg5 {[%clk 0:00:17.1]} 25. Qxg5
{[%clk 0:00:12.9]} 25... Nxg5 {[%clk 0:00:18]} 26. Rg3 {[%clk 0:00:11.6]} 26...
c5 {[%clk 0:00:17.1]} 27. h4 {[%clk 0:00:11.8]} 27... Ngf7 {[%clk 0:00:16.5]}
28. Rxg8+ {[%clk 0:00:12.5]} 28... Kxg8 {[%clk 0:00:17.4]} 29. Nc4 {[%clk
0:00:11.4]} 29... cxd4 {[%clk 0:00:17.9]} 30. Nxb6 {[%clk 0:00:11.8]} 30... axb6
{[%clk 0:00:18.8]} 31. cxd4 {[%clk 0:00:12.4]} 31... Nc6 {[%clk 0:00:19.7]} 32.
d5 {[%clk 0:00:07.9]} 32... Nce5 {[%clk 0:00:20.1]} 33. Kh2 {[%clk 0:00:07.5]}
33... Kg7 {[%clk 0:00:20.7]} 34. Kg3 {[%clk 0:00:07.7]} 34... Nh6 {[%clk
0:00:21.3]} 35. Kf4 {[%clk 0:00:06.9]} 35... Kg6 {[%clk 0:00:21.6]} 36. Rc1
{[%clk 0:00:05.7]} 36... Nd3+ {[%clk 0:00:21.5]} 0-1

[Event "*** Titled Tuesday Blitz"]
[Site "Chess.com"]
[Date "2021.04.06"]
[Round "1"]
[White "Ranindu2003"]
[Black "Marianov_Podstavnikov"]
[Result "0-1"]
[WhiteElo "2586"]
[BlackElo "2323"]
[TimeControl "180+1"]
[EndTime "10:07:11 PDT"]
[Termination "Marianov_Podstavnikov won by resignation"]

1. e4 {[%clk 0:02:58.5]} 1... e5 {[%clk 0:02:59.3]} 2. Nf3 {[%clk 0:02:57.8]}
2... Nc6 {[%clk 0:02:59.4]} 3. Bc4 {[%clk 0:02:58.2]} 3... Nf6 {[%clk
0:02:58.7]} 4. d3 {[%clk 0:02:57.7]} 4... Bc5 {[%clk 0:02:57.4]} 5. c3 {[%clk
0:02:57.4]} 5... a6 {[%clk 0:02:56.8]} 6. Bb3 {[%clk 0:02:56.9]} 6... d6 {[%clk
0:02:52.6]} 7. h3 {[%clk 0:02:57.4]} 7... O-O {[%clk 0:02:49.9]} 8. Nbd2 {[%clk
0:02:55.7]} 8... Ba7 {[%clk 0:02:42.1]} 9. Nf1 {[%clk 0:02:54.9]} 9... h6 {[%clk
0:02:37.8]} 10. Ng3 {[%clk 0:02:54.2]} 10... Be6 {[%clk 0:02:37.8]} 11. Nh2
{[%clk 0:02:50.3]} 11... d5 {[%clk 0:02:31]} 12. Qf3 {[%clk 0:02:49.2]} 12...
dxe4 {[%clk 0:02:20.7]} 13. dxe4 {[%clk 0:02:50.1]} 13... Na5 {[%clk 0:01:55.2]}
14. Bc2 {[%clk 0:02:30.7]} 14... Nh7 {[%clk 0:01:12.6]} 15. Ng4 {[%clk
0:02:18.7]} 15... Ng5 {[%clk 0:01:08.6]} 16. Bxg5 {[%clk 0:01:49.7]} 16... Qxg5
{[%clk 0:01:06.5]} 17. Nf5 {[%clk 0:01:50.6]} 17... Rad8 {[%clk 0:00:54]} 18.
O-O {[%clk 0:01:39.5]} 18... Rd2 {[%clk 0:00:51.1]} 19. Rac1 {[%clk 0:01:19.5]}
19... h5 {[%clk 0:00:36.6]} 20. Nge3 {[%clk 0:00:46.7]} 20... g6 {[%clk
0:00:36.4]} 21. h4 {[%clk 0:00:39.8]} 21... Qf4 {[%clk 0:00:32.7]} 22. Ne7+
{[%clk 0:00:23.1]} 22... Kg7 {[%clk 0:00:30.4]} 23. N7d5 {[%clk 0:00:21.2]}
23... Qxf3 {[%clk 0:00:24.4]} 24. gxf3 {[%clk 0:00:22.1]} 24... c6 {[%clk
0:00:24.8]} 25. Nb4 {[%clk 0:00:18.9]} 25... Bxe3 {[%clk 0:00:24]} 26. fxe3
{[%clk 0:00:19.8]} 26... Nc4 {[%clk 0:00:24.2]} 27. b3 {[%clk 0:00:12.6]} 27...
Nxe3 {[%clk 0:00:23.7]} 28. Bb1 {[%clk 0:00:13.2]} 28... Nxf1 {[%clk 0:00:20.4]}
29. Rxf1 {[%clk 0:00:14.1]} 29... Rfd8 {[%clk 0:00:20.2]} 30. Bc2 {[%clk
0:00:14.2]} 30... Re2 {[%clk 0:00:20]} 31. Bd3 {[%clk 0:00:13.8]} 31... Re3
{[%clk 0:00:19.8]} 32. Bb1 {[%clk 0:00:06.6]} 32... Rd2 {[%clk 0:00:19]} 33. Rf2
{[%clk 0:00:06.9]} 33... Re1+ {[%clk 0:00:18.7]} 34. Kg2 {[%clk 0:00:07.1]}
34... Rxf2+ {[%clk 0:00:18.9]} 0-1

[Event "*** Titled Tuesday Blitz"]
[Site "Chess.com"]
[Date "2021.04.06"]
[Round "1"]
[White "Zkid"]
[Black "geordie_derraugh"]
[Result "1/2-1/2"]
[WhiteElo "2847"]
[BlackElo "2452"]
[TimeControl "180+1"]
[EndTime "10:07:15 PDT"]
[Termination "Game drawn by repetition"]

1. e4 {[%clk 0:03:00.6]} 1... c5 {[%clk 0:02:58.4]} 2. Nf3 {[%clk 0:02:59.1]}
2... e6 {[%clk 0:02:58.6]} 3. d4 {[%clk 0:02:59.1]} 3... cxd4 {[%clk 0:02:59]}
4. Nxd4 {[%clk 0:03:00]} 4... Nc6 {[%clk 0:02:59.2]} 5. c4 {[%clk 0:02:59.3]}
5... Nf6 {[%clk 0:02:57.1]} 6. Nc3 {[%clk 0:02:58.5]} 6... Bb4 {[%clk
0:02:56.9]} 7. Nxc6 {[%clk 0:02:55.3]} 7... bxc6 {[%clk 0:02:55.9]} 8. e5 {[%clk
0:02:53.2]} 8... Ne4 {[%clk 0:02:49]} 9. Qd4 {[%clk 0:02:47.4]} 9... Qa5 {[%clk
0:02:35.1]} 10. a3 {[%clk 0:01:53.9]} 10... Bxc3+ {[%clk 0:02:09.9]} 11. bxc3
{[%clk 0:01:53]} 11... Qxc3+ {[%clk 0:02:09.9]} 12. Qxc3 {[%clk 0:01:52.3]}
12... Nxc3 {[%clk 0:02:10.8]} 13. Bd3 {[%clk 0:01:40.8]} 13... Na4 {[%clk
0:02:06.5]} 14. Bc2 {[%clk 0:01:28.2]} 14... Nb6 {[%clk 0:02:02.3]} 15. c5
{[%clk 0:01:25.8]} 15... Nd5 {[%clk 0:01:58.5]} 16. Bd3 {[%clk 0:01:01.9]} 16...
Rb8 {[%clk 0:01:57.6]} 17. Kd2 {[%clk 0:00:56.9]} 17... f5 {[%clk 0:01:38.2]}
18. Kc2 {[%clk 0:00:50.2]} 18... O-O {[%clk 0:01:35]} 19. h4 {[%clk 0:00:49.1]}
19... f4 {[%clk 0:01:28.6]} 20. h5 {[%clk 0:00:43.2]} 20... Nc7 {[%clk
0:01:04.7]} 21. Rh4 {[%clk 0:00:40.3]} 21... f3 {[%clk 0:01:04.1]} 22. g3 {[%clk
0:00:34]} 22... Ba6 {[%clk 0:01:04.3]} 23. Be4 {[%clk 0:00:33.1]} 23... Nd5
{[%clk 0:00:57.4]} 24. Rg4 {[%clk 0:00:28.1]} 24... Kh8 {[%clk 0:00:55.4]} 25.
Bd2 {[%clk 0:00:25]} 25... Be2 {[%clk 0:00:51.7]} 26. Rb1 {[%clk 0:00:21.2]}
26... Rxb1 {[%clk 0:00:46.7]} 27. Kxb1 {[%clk 0:00:22.1]} 27... Rb8+ {[%clk
0:00:46.4]} 28. Ka2 {[%clk 0:00:21.1]} 28... Rb5 {[%clk 0:00:42.2]} 29. Bxd5
{[%clk 0:00:20.7]} 29... cxd5 {[%clk 0:00:39.5]} 30. Rb4 {[%clk 0:00:19.3]}
30... Kg8 {[%clk 0:00:28.5]} 31. Rxb5 {[%clk 0:00:19.1]} 31... Bxb5 {[%clk
0:00:29.4]} 32. h6 {[%clk 0:00:18.8]} 32... gxh6 {[%clk 0:00:28]} 33. Bxh6
{[%clk 0:00:19.7]} 33... Kf7 {[%clk 0:00:28.4]} 34. Kb3 {[%clk 0:00:19.7]} 34...
Kg6 {[%clk 0:00:27.9]} 35. Bf4 {[%clk 0:00:19.3]} 35... Kf5 {[%clk 0:00:28.1]}
36. Kb4 {[%clk 0:00:19.2]} 36... a6 {[%clk 0:00:26.8]} 37. Kc3 {[%clk
0:00:18.8]} 37... h5 {[%clk 0:00:26.6]} 38. Kd4 {[%clk 0:00:18]} 38... h4 {[%clk
0:00:25.9]} 39. Ke3 {[%clk 0:00:18.1]} 39... h3 {[%clk 0:00:26.2]} 40. g4+
{[%clk 0:00:18.5]} 40... Kxg4 {[%clk 0:00:26.6]} 41. Bh2 {[%clk 0:00:19.2]}
41... Be2 {[%clk 0:00:23.2]} 42. Bg3 {[%clk 0:00:19.3]} 42... Kf5 {[%clk
0:00:21]} 43. Bh2 {[%clk 0:00:19.7]} 43... Kg4 {[%clk 0:00:19.4]} 44. Bg3 {[%clk
0:00:19.9]} 44... h2 {[%clk 0:00:19.1]} 45. Bxh2 {[%clk 0:00:20.1]} 45... Kh3
{[%clk 0:00:19.6]} 46. Bg3 {[%clk 0:00:19.7]} 46... Kg4 {[%clk 0:00:20.1]} 47.
Bf4 {[%clk 0:00:19.4]} 47... Kf5 {[%clk 0:00:20.5]} 48. Bg3 {[%clk 0:00:19.3]}
48... Kg4 {[%clk 0:00:20.4]} 49. Kd4 {[%clk 0:00:19]} 49... Kf5 {[%clk
0:00:20.4]} 50. Ke3 {[%clk 0:00:19.1]} 50... Kg4 {[%clk 0:00:20.6]} 1/2-1/2

[Event "*** Titled Tuesday Blitz"]
[Site "Chess.com"]
[Date "2021.04.06"]
[Round "1"]
[White "Camels1981"]
[Black "Gusarov91"]
[Result "1/2-1/2"]
[WhiteElo "2346"]
[BlackElo "2622"]
[TimeControl "180+1"]
[EndTime "10:07:15 PDT"]
[Termination "Game drawn by stalemate"]

1. e4 {[%clk 0:03:00.9]} 1... c6 {[%clk 0:02:58.4]} 2. d4 {[%clk 0:03:00.3]}
2... d5 {[%clk 0:02:57.7]} 3. exd5 {[%clk 0:03:01.2]} 3... cxd5 {[%clk
0:02:57.8]} 4. c4 {[%clk 0:03:01.6]} 4... Nf6 {[%clk 0:02:57.9]} 5. Nc3 {[%clk
0:02:58.8]} 5... e6 {[%clk 0:02:57.2]} 6. c5 {[%clk 0:02:58.5]} 6... a5 {[%clk
0:02:56.4]} 7. Nf3 {[%clk 0:02:54.8]} 7... Be7 {[%clk 0:02:56.8]} 8. Bb5+ {[%clk
0:02:54]} 8... Bd7 {[%clk 0:02:56.8]} 9. Qe2 {[%clk 0:02:51.6]} 9... O-O {[%clk
0:02:56.4]} 10. O-O {[%clk 0:02:51.2]} 10... b6 {[%clk 0:02:56.8]} 11. Bxd7
{[%clk 0:02:47.1]} 11... Nfxd7 {[%clk 0:02:53.2]} 12. cxb6 {[%clk 0:02:38.6]}
12... Nxb6 {[%clk 0:02:51.1]} 13. Bf4 {[%clk 0:02:33.5]} 13... Nc6 {[%clk
0:02:49.2]} 14. Rfc1 {[%clk 0:02:29.5]} 14... Bf6 {[%clk 0:02:41.4]} 15. Be5
{[%clk 0:02:17.7]} 15... Bxe5 {[%clk 0:02:38.8]} 16. dxe5 {[%clk 0:02:18.2]}
16... Qd7 {[%clk 0:02:33.7]} 17. Nb5 {[%clk 0:02:10.4]} 17... Rfd8 {[%clk
0:02:22.1]} 18. b3 {[%clk 0:02:00.1]} 18... d4 {[%clk 0:02:19.3]} 19. Qe4 {[%clk
0:01:56.1]} 19... Rac8 {[%clk 0:02:18.6]} 20. Nd6 {[%clk 0:01:53.4]} 20... Rc7
{[%clk 0:02:18.9]} 21. Nxd4 {[%clk 0:01:49.3]} 21... Nxd4 {[%clk 0:02:11.2]} 22.
Rxc7 {[%clk 0:01:49.4]} 22... Qxc7 {[%clk 0:02:09.7]} 23. Qxd4 {[%clk
0:01:49.4]} 23... Nc8 {[%clk 0:02:08.3]} 24. Rd1 {[%clk 0:01:47.2]} 24... Ne7
{[%clk 0:02:05]} 25. Qc4 {[%clk 0:01:27.4]} 25... Qxc4 {[%clk 0:02:03]} 26. bxc4
{[%clk 0:01:26]} 26... Ng6 {[%clk 0:02:03.1]} 27. c5 {[%clk 0:01:02.1]} 27...
Nxe5 {[%clk 0:02:02.4]} 28. Kf1 {[%clk 0:00:59.3]} 28... f6 {[%clk 0:02:00.6]}
29. Ke2 {[%clk 0:00:59]} 29... Rb8 {[%clk 0:01:58.2]} 30. f4 {[%clk 0:00:55.1]}
30... Nc6 {[%clk 0:01:57.7]} 31. Rd2 {[%clk 0:00:50.1]} 31... Kf8 {[%clk
0:01:52.3]} 32. a4 {[%clk 0:00:48.1]} 32... Ke7 {[%clk 0:01:51.1]} 33. Nc4
{[%clk 0:00:44.8]} 33... Rb4 {[%clk 0:01:49.4]} 34. Nb6 {[%clk 0:00:44.7]} 34...
Rxf4 {[%clk 0:01:41.3]} 35. Rd7+ {[%clk 0:00:44.1]} 35... Ke8 {[%clk 0:01:41.7]}
36. Rxg7 {[%clk 0:00:39.1]} 36... Rf5 {[%clk 0:01:38.5]} 37. Rc7 {[%clk
0:00:25.9]} 37... Rxc5 {[%clk 0:01:36.3]} 38. Nd7 {[%clk 0:00:26]} 38... Nd4+
{[%clk 0:01:32.9]} 39. Kd3 {[%clk 0:00:23.2]} 39... Rxc7 {[%clk 0:01:33]} 40.
Nxf6+ {[%clk 0:00:23.4]} 40... Kf7 {[%clk 0:01:33.5]} 41. Nxh7 {[%clk
0:00:23.6]} 41... Nb3 {[%clk 0:01:30.8]} 42. Ng5+ {[%clk 0:00:23.4]} 42... Ke7
{[%clk 0:01:31.4]} 43. h4 {[%clk 0:00:22.3]} 43... Nc5+ {[%clk 0:01:31.7]} 44.
Kc4 {[%clk 0:00:21.3]} 44... Nxa4+ {[%clk 0:01:32]} 45. Kb5 {[%clk 0:00:21.6]}
45... Nc3+ {[%clk 0:01:32.5]} 46. Kxa5 {[%clk 0:00:21.5]} 46... Kf6 {[%clk
0:01:27.5]} 47. Kb6 {[%clk 0:00:20.5]} 47... Rc4 {[%clk 0:01:26.1]} 48. Nf3
{[%clk 0:00:19.7]} 48... Nd5+ {[%clk 0:01:24.5]} 49. Kb5 {[%clk 0:00:20.4]}
49... Rg4 {[%clk 0:01:23.8]} 50. Kc5 {[%clk 0:00:15.4]} 50... Rxg2 {[%clk
0:01:23.5]} 51. Kd6 {[%clk 0:00:16.3]} 51... Ne3 {[%clk 0:01:20.3]} 52. Ng5
{[%clk 0:00:15.3]} 52... Nf5+ {[%clk 0:01:19.6]} 53. Kd7 {[%clk 0:00:15.1]}
53... Rd2+ {[%clk 0:01:19.2]} 54. Ke8 {[%clk 0:00:15]} 54... Rd4 {[%clk
0:01:15.4]} 55. Kf8 {[%clk 0:00:15.9]} 55... Rxh4 {[%clk 0:01:14.4]} 56. Nf7
{[%clk 0:00:12.4]} 56... Ra4 {[%clk 0:01:12.3]} 57. Nd8 {[%clk 0:00:10.6]} 57...
Ra8 {[%clk 0:01:11.6]} 58. Kg8 {[%clk 0:00:10.7]} 58... Rxd8+ {[%clk 0:01:11.6]}
59. Kh7 {[%clk 0:00:11.6]} 59... Re8 {[%clk 0:01:11.1]} 1/2-1/2

[Event "*** Titled Tuesday Blitz"]
[Site "Chess.com"]
[Date "2021.04.06"]
[Round "1"]
[White "NiranjanNavalgund"]
[Black "lukazz029"]
[Result "1-0"]
[WhiteElo "2509"]
[BlackElo "2119"]
[TimeControl "180+1"]
[EndTime "10:07:19 PDT"]
[Termination "NiranjanNavalgund won by resignation"]

1. e4 {[%clk 0:02:55.5]} 1... c5 {[%clk 0:02:57.1]} 2. d4 {[%clk 0:02:53.5]}
2... cxd4 {[%clk 0:02:53.9]} 3. c3 {[%clk 0:02:53.7]} 3... d5 {[%clk 0:02:52.2]}
4. exd5 {[%clk 0:02:53.6]} 4... Qxd5 {[%clk 0:02:50.5]} 5. Nf3 {[%clk
0:02:54.5]} 5... Nf6 {[%clk 0:02:49.3]} 6. cxd4 {[%clk 0:02:54.7]} 6... Bg4
{[%clk 0:02:48.3]} 7. Be2 {[%clk 0:02:55.2]} 7... e6 {[%clk 0:02:47.9]} 8. Nc3
{[%clk 0:02:54.7]} 8... Qd7 {[%clk 0:02:47.1]} 9. Ne5 {[%clk 0:02:53]} 9... Bxe2
{[%clk 0:02:43.1]} 10. Qxe2 {[%clk 0:02:51.4]} 10... Qc7 {[%clk 0:02:35.1]} 11.
O-O {[%clk 0:02:45.1]} 11... Nbd7 {[%clk 0:02:31]} 12. Bf4 {[%clk 0:02:41.6]}
12... Qb6 {[%clk 0:02:29.5]} 13. d5 {[%clk 0:02:31.3]} 13... Be7 {[%clk
0:02:17.9]} 14. Nc4 {[%clk 0:02:25]} 14... Qa6 {[%clk 0:02:15.6]} 15. d6 {[%clk
0:02:23.7]} 15... Bd8 {[%clk 0:02:10.4]} 16. b4 {[%clk 0:02:23.4]} 16... b6
{[%clk 0:01:55.8]} 17. a4 {[%clk 0:01:59.8]} 17... O-O {[%clk 0:01:54.5]} 18. b5
{[%clk 0:01:58.2]} 18... Qb7 {[%clk 0:01:54.1]} 19. Rad1 {[%clk 0:01:57.7]}
19... Rc8 {[%clk 0:01:52.5]} 20. Qd3 {[%clk 0:01:48.7]} 20... Nc5 {[%clk
0:01:48]} 21. Qd4 {[%clk 0:01:45.9]} 21... Nfd7 {[%clk 0:01:41.4]} 22. Qe3
{[%clk 0:01:32.2]} 22... Bf6 {[%clk 0:01:39.6]} 23. Ne5 {[%clk 0:01:26.2]} 23...
Rfd8 {[%clk 0:01:20.5]} 24. Nc6 {[%clk 0:01:20.8]} 24... Rxc6 {[%clk 0:01:20.8]}
25. bxc6 {[%clk 0:01:20.9]} 25... Qxc6 {[%clk 0:01:21.4]} 26. Nb5 {[%clk
0:01:20.7]} 26... Nxa4 {[%clk 0:01:14.9]} 27. Nxa7 {[%clk 0:01:18.1]} 27... Qb7
{[%clk 0:01:13.4]} 28. Nb5 {[%clk 0:01:18.2]} 28... Nac5 {[%clk 0:01:09.3]} 29.
Bg3 {[%clk 0:01:17.1]} 29... e5 {[%clk 0:01:05.4]} 30. Nc7 {[%clk 0:01:16.8]}
30... e4 {[%clk 0:01:03.2]} 31. Nd5 {[%clk 0:01:16.5]} 31... Re8 {[%clk
0:00:57.4]} 32. Nxf6+ {[%clk 0:01:10.2]} 32... Nxf6 {[%clk 0:00:57]} 33. Bh4
{[%clk 0:01:08.3]} 33... Nfd7 {[%clk 0:00:51.4]} 34. f3 {[%clk 0:01:06.6]} 34...
Qc6 {[%clk 0:00:48.1]} 35. fxe4 {[%clk 0:01:05.4]} 35... Nxe4 {[%clk 0:00:47.3]}
36. Qf4 {[%clk 0:01:05.6]} 36... f6 {[%clk 0:00:44.5]} 37. Bf2 {[%clk
0:01:00.4]} 37... b5 {[%clk 0:00:43.6]} 38. Rfe1 {[%clk 0:00:54.8]} 38... b4
{[%clk 0:00:38.6]} 39. Rd4 {[%clk 0:00:54]} 39... Ndc5 {[%clk 0:00:36.5]} 40.
Rc4 {[%clk 0:00:53.6]} 40... Qd5 {[%clk 0:00:36]} 41. Rxc5 {[%clk 0:00:52]}
41... Nxc5 {[%clk 0:00:31]} 42. Rxe8+ {[%clk 0:00:52.9]} 42... Kf7 {[%clk
0:00:31.6]} 43. Re7+ {[%clk 0:00:52.2]} 43... Kf8 {[%clk 0:00:30.8]} 44. h3
{[%clk 0:00:51]} 44... b3 {[%clk 0:00:28.5]} 45. Bxc5 {[%clk 0:00:45.2]} 45...
Qxc5+ {[%clk 0:00:28.1]} 46. Qf2 {[%clk 0:00:45.3]} 46... Qxd6 {[%clk
0:00:20.4]} 47. Rb7 {[%clk 0:00:42.8]} 47... Qd1+ {[%clk 0:00:17.7]} 48. Kh2
{[%clk 0:00:42.5]} 48... Qd6+ {[%clk 0:00:18]} 49. Qg3 {[%clk 0:00:42.8]} 49...
Qd5 {[%clk 0:00:10.9]} 50. Qxb3 {[%clk 0:00:41.6]} 1-0